bitfinex/quotes_SOLUSD_20250310
["timestamp","ask_amount","ask_price","bid_price","bid_amount"]
[1741617101162,49.92386463,122.48,122.44,32.7]
[1741617101452,83.11567506,122.49,122.44,32.7]
[1741617101653,49.92386463,122.45,122.43,32.7]
[1741617101833,49.92386463,122.45,122.39,40.8704]
[1741617102029,18.79181043,122.45,122.39,40.8704]
[1741617102439,49.92386463,122.42,122.37,49.92386463]
[1741617102649,49.92386463,122.42,122.37,82.62386463]
[1741617102952,0.14216157,122.45,122.4,58.09356463]
[1741617103158,50.0660262,122.45,122.39,49.92386463]
[1741617103324,0.14216157,122.48,122.4,40.8698]
[1741617103653,68.57351349,122.45,122.4,90.79366463]
[1741617103838,18.64964886,122.43,122.4,32.7]
[1741617104045,68.57351349,122.44,122.4,32.7]
[1741617104238,18.79181043,122.45,122.41,49.92386463]
[1741617104446,18.64964886,122.46,122.42,49.92386463]
[1741617104949,14.4,122.49,122.45,8.1665]
[1741617105156,68.71567506,122.49,122.45,32.7]
[1741617105470,18.64964886,122.45,122.41,32.7]
[1741617105649,68.57351349,122.45,122.39,20.0]
[1741617105857,18.64964886,122.45,122.41,49.92386463]
[1741617106045,18.79181043,122.47,122.39,53.92502159]
[1741617106371,18.64964886,122.47,122.42,49.92386463]
[1741617106666,68.57351349,122.45,122.4,49.92386463]
[1741617106863,68.57351349,122.45,122.4,82.62386463]
[1741617107066,18.64964886,122.45,122.4,49.92386463]
[1741617107363,68.57351349,122.45,122.4,32.7]
[1741617107540,18.64964886,122.43,122.4,32.7]
[1741617107739,49.92386463,122.43,122.4,32.7]
[1741617108272,49.92386463,122.42,122.39,32.7]
[1741617108842,49.92386463,122.46,122.41,49.92386463]
[1741617109050,18.79181043,122.48,122.41,32.7]
[1741617109266,49.92386463,122.45,122.41,32.7]
[1741617109569,194.58,122.5,122.42,49.92386463]
[1741617109770,50.0660262,122.48,122.42,32.7]
[1741617109957,49.92386463,122.46,122.42,32.7]
[1741617110160,18.64964886,122.48,122.43,49.92386463]
[1741617110347,194.58,122.5,122.43,32.7]
[1741617110552,14.54216157,122.53,122.47,49.92386463]
[1741617110853,49.92386463,122.51,122.47,32.7]
[1741617111162,49.92386463,122.52,122.47,32.7]
[1741617111366,18.64964886,122.5,122.47,32.7]
[1741617111551,49.92386463,122.48,122.45,32.7]
[1741617111748,49.92386463,122.47,122.45,32.7]
[1741617111959,18.64964886,122.49,122.43,49.92386463]
[1741617111960,49.92386463,122.48,122.43,49.92386463]
[1741617112264,49.92386463,122.46,122.42,40.8685]
[1741617112430,49.92386463,122.46,122.42,32.7]
[1741617112633,49.92386463,122.45,122.42,32.7]
[1741617112957,14.4,122.46,122.42,32.7]
[1741617113263,14.4,122.46,122.44,49.92386463]
[1741617113424,72.48996463,122.46,122.42,32.7]
[1741617113621,14.4,122.46,122.43,49.92386463]
[1741617113915,68.57351349,122.5,122.45,49.92386463]
[1741617114241,18.64964886,122.52,122.47,49.92386463]
[1741617114545,49.92386463,122.53,122.48,49.92386463]
[1741617114546,18.64964886,122.53,122.48,49.92386463]
[1741617114839,50.0660262,122.54,122.48,49.92386463]
[1741617114840,49.92386463,122.54,122.49,49.92386463]
[1741617115041,49.92386463,122.55,122.49,49.92386463]
[1741617115336,18.64964886,122.55,122.51,49.92386463]
[1741617115555,18.64964886,122.55,122.51,32.7]
[1741617115556,49.92386463,122.54,122.51,32.7]
[1741617115836,49.92386463,122.53,122.51,32.7]
[1741617116441,68.57351349,122.56,122.51,32.7]
[1741617116740,194.62,122.58,122.53,49.92386463]
[1741617116917,194.62,122.58,122.53,82.62386463]
[1741617117119,194.62,122.58,122.53,40.8611]
[1741617117425,49.92386463,122.59,122.53,111.18806463]
[1741617117932,14.4,122.6,122.54,49.92386463]
[1741617118135,14.4,122.6,122.53,32.7]
[1741617118136,0.14216157,122.57,122.53,32.7]
[1741617118433,49.92386463,122.56,122.5,61.2711]
[1741617118636,8.1547,122.63,122.55,49.92386463]
[1741617118833,14.54216157,122.65,122.58,20.0]
[1741617119128,14.4,122.65,122.61,58.07976463]
[1741617119337,49.92386463,122.68,122.62,49.92386463]
[1741617119537,14.4,122.69,122.62,32.7]
[1741617119751,49.92386463,122.67,122.62,32.7]
[1741617120041,208.94,122.74,122.66,49.92386463]
[1741617120245,49.92386463,122.72,122.67,49.92386463]
[1741617120421,49.92386463,122.69,122.66,32.7]
[1741617120618,28.5133,122.75,122.66,52.7]
[1741617120619,8.1468,122.75,122.66,52.7]
[1741617120923,2.6296,122.76,122.72,49.92386463]
[1741617121234,2.6296,122.76,122.72,32.7]
[1741617121428,2.6296,122.76,122.72,90.77236463]
[1741617121623,52.55346463,122.76,122.72,32.7]
[1741617121833,52.55346463,122.76,122.67,32.7]
[1741617121834,18.64964886,122.72,122.67,32.7]
[1741617122006,18.79181043,122.75,122.67,32.7]
[1741617122210,18.79181043,122.71,122.64,32.7]
[1741617122432,18.79181043,122.71,122.62,32.7]
[1741617122433,20.0,122.66,122.62,32.7]
[1741617122633,20.0,122.66,122.58,13.0524]
[1741617122634,18.64964886,122.65,122.58,45.7524]
[1741617122938,38.79181043,122.72,122.64,49.92386463]
[1741617123127,38.79181043,122.72,122.64,82.62386463]
[1741617123328,18.64964886,122.74,122.68,49.92386463]
[1741617123513,22.5266,122.75,122.68,32.7]
[1741617123514,49.92386463,122.71,122.68,32.7]
[1741617123919,14.38,122.75,122.7,49.92386463]
[1741617124237,2.6296,122.76,122.74,49.92386463]
[1741617124418,2.6296,122.76,122.7,32.7]
[1741617124614,2.6296,122.76,122.71,49.92386463]
[1741617124819,2.6296,122.76,122.74,49.92386463]
[1741617125016,2.6296,122.76,122.74,32.7]
[1741617125333,2.6296,122.76,122.74,82.62386463]
[1741617125523,2.6296,122.76,122.74,32.7]
[1741617125726,52.55346463,122.76,122.72,32.7]
[1741617125930,18.79181043,122.75,122.72,32.7]
[1741617126131,50.0660262,122.73,122.7,32.7]
[1741617126329,2.6296,122.76,122.7,32.7]
[1741617126528,2.6296,122.76,122.75,49.92386463]
[1741617126724,2.6296,122.76,122.75,82.62386463]
[1741617126924,0.14216157,122.82,122.76,30.0704]
[1741617127146,58.2086262,122.82,122.77,49.92386463]
[1741617127454,14.38,122.83,122.78,49.92386463]
[1741617127750,49.92386463,122.81,122.77,27.6704]
[1741617127956,14.38,122.83,122.78,49.92386463]
[1741617128120,14.38,122.83,122.78,27.6704]
[1741617128324,14.38,122.83,122.74,8.43162314]
[1741617128524,14.38,122.83,122.74,27.6704]
[1741617128525,0.14216157,122.82,122.74,27.6704]
[1741617128732,18.79181043,122.82,122.74,27.6704]
[1741617128933,18.79181043,122.82,122.73,27.6704]
[1741617129235,49.92386463,122.75,122.73,27.6704]
[1741617129549,69.92386463,122.74,122.67,27.6704]
[1741617129746,49.92386463,122.7,122.66,27.6704]
[1741617129926,0.14216157,122.74,122.67,49.92386463]
[1741617130246,0.14216157,122.74,122.67,27.6704]
[1741617130451,50.0660262,122.7,122.66,27.6704]
[1741617130743,50.0660262,122.7,122.61,27.6704]
[1741617130744,0.14216157,122.66,122.61,27.6704]
[1741617131363,58.07596463,122.67,122.61,77.59426463]
[1741617131646,18.64964886,122.68,122.61,27.6704]
[1741617131854,50.0660262,122.67,122.62,49.92386463]
[1741617132156,26.80104886,122.68,122.61,27.6704]
[1741617132157,50.0660262,122.68,122.63,49.92386463]
[1741617132448,49.92386463,122.65,122.61,27.6704]
[1741617132755,50.0660262,122.62,122.54,27.6704]
[1741617132927,196.24,122.68,122.54,27.6704]
[1741617132928,18.79181043,122.6,122.54,27.6704]
[1741617133128,0.14216157,122.61,122.56,49.92386463]
[1741617133357,49.92386463,122.6,122.54,77.59426463]
[1741617133658,49.92386463,122.57,122.54,27.6704]
[1741617133946,0.14216157,122.6,122.54,27.6704]
[1741617134149,8.1561,122.61,122.54,27.6704]
[1741617134355,78.07916463,122.62,122.57,49.92386463]
[1741617134534,8.29676157,122.63,122.58,49.92386463]
[1741617134732,18.64964886,122.62,122.57,77.59426463]
[1741617135040,18.79181043,122.62,122.57,27.6704]
[1741617135235,20.0,122.64,122.58,49.92386463]
[1741617135444,0.14216157,122.62,122.57,27.6704]
[1741617135747,49.92386463,122.58,122.52,27.6704]
[1741617135930,49.92386463,122.56,122.52,27.6704]
[1741617136134,64.28386463,122.59,122.54,49.92386463]
[1741617136331,49.92386463,122.58,122.53,49.92386463]
[1741617136540,49.92386463,122.55,122.5,77.59426463]
[1741617136852,49.92386463,122.55,122.44,105.757819]
[1741617136853,49.92386463,122.51,122.42,5.84393079]
[1741617137062,49.92386463,122.51,122.45,20.0]
[1741617137352,6.0935,122.6,122.53,20.0]
[1741617137560,49.92386463,122.65,122.59,49.92386463]
[1741617137761,0.14216157,122.64,122.59,55.62386463]
[1741617137948,0.14216157,122.61,122.56,5.7]
[1741617138259,49.92386463,122.57,122.5,1.22354078]
[1741617138428,0.14216157,122.56,122.5,5.7]
[1741617138630,0.14216157,122.52,122.46,55.62386463]
[1741617138825,49.92386463,122.51,122.46,55.62386463]
[1741617139053,0.14216157,122.52,122.46,55.62386463]
[1741617139054,50.0660262,122.52,122.46,55.62386463]
[1741617139263,49.92386463,122.49,122.46,5.7]
[1741617139427,49.92386463,122.49,122.43,49.92386463]
[1741617139632,50.0660262,122.49,122.44,49.92386463]
[1741617139944,50.0660262,122.49,122.44,55.62386463]
[1741617140138,0.14216157,122.5,122.46,49.92386463]
[1741617140344,49.92386463,122.52,122.46,55.62386463]
[1741617140649,49.92386463,122.5,122.46,5.7]
[1741617140854,49.92386463,122.48,122.46,5.7]
[1741617141049,202.4606,122.54,122.46,55.62386463]
[1741617141247,49.92386463,122.51,122.46,5.7]
[1741617141460,50.0660262,122.5,122.46,5.7]
[1741617141649,49.92386463,122.51,122.46,5.7]
[1741617141849,18.79181043,122.53,122.46,55.62386463]
[1741617142054,0.14216157,122.46,122.41,5.7]
[1741617142356,18.79181043,122.48,122.39,5.7]
[1741617142357,49.92386463,122.43,122.39,5.7]
[1741617142539,14.36,122.48,122.4,49.92386463]
[1741617142865,49.92386463,122.44,122.4,5.7]
[1741617143158,0.14216157,122.47,122.4,5.7]
[1741617143364,49.92386463,122.42,122.4,5.7]
[1741617143533,49.92386463,122.41,122.36,49.92386463]
[1741617143858,49.92386463,122.43,122.37,49.92386463]
[1741617144062,8.1652,122.47,122.38,18.64964886]
[1741617144063,0.14216157,122.47,122.38,18.64964886]
[1741617144241,49.92386463,122.46,122.4,49.92386463]
[1741617144475,49.92386463,122.45,122.4,55.62386463]
[1741617144654,0.14216157,122.47,122.41,49.92386463]
[1741617144961,14.36,122.48,122.44,69.92386463]
[1741617145162,0.14216157,122.53,122.47,49.92386463]
[1741617145337,50.0660262,122.53,122.48,49.92386463]
[1741617145532,49.92386463,122.51,122.47,5.7]
[1741617145932,49.92386463,122.52,122.47,63.78896463]
[1741617146151,50.0660262,122.53,122.47,63.78896463]
[1741617146347,18.79181043,122.53,122.47,5.7]
[1741617146657,49.92386463,122.5,122.47,5.7]
[1741617146863,49.92386463,122.49,122.44,55.62386463]
[1741617147037,49.92386463,122.49,122.41,5.7]
[1741617147038,49.92386463,122.47,122.41,5.7]
[1741617147366,49.92386463,122.42,122.38,13.8711]
[1741617147533,49.92386463,122.42,122.38,5.7]
[1741617147737,49.92386463,122.41,122.38,5.7]
[1741617147939,49.92386463,122.39,122.35,5.7]
[1741617148141,64.30386463,122.42,122.36,49.92386463]
[1741617148363,49.92386463,122.4,122.36,5.7]
[1741617148755,49.92386463,122.4,122.33,5.0]
[1741617148756,49.92386463,122.37,122.33,10.7]
[1741617148951,20.0,122.38,122.33,10.7]
[1741617149261,49.92386463,122.36,122.33,5.0]
[1741617149643,49.92386463,122.38,122.33,18.8744]
[1741617150156,49.92386463,122.38,122.33,10.7]
[1741617150657,22.5488,122.42,122.34,49.92386463]
[1741617150962,200.5582,122.44,122.38,20.0]
[1741617151259,49.92386463,122.41,122.38,5.7]
[1741617151559,49.92386463,122.4,122.36,33.8721]
[1741617151751,194.48,122.44,122.37,49.92386463]
[1741617151971,64.30386463,122.46,122.4,69.92386463]
[1741617152136,64.30386463,122.46,122.41,49.92386463]
[1741617152340,49.92386463,122.44,122.4,5.7]
[1741617152541,64.30386463,122.46,122.4,55.62386463]
[1741617152836,206.777,122.51,122.4,55.62386463]
[1741617152837,208.97,122.51,122.4,55.62386463]
[1741617153048,208.97,122.51,122.46,49.92386463]
[1741617153269,0.03,122.51,122.47,49.92386463]
[1741617153765,0.03,122.51,122.45,8.1665]
[1741617153937,0.03,122.51,122.48,49.92386463]
[1741617154138,0.03,122.51,122.45,28.1665]
[1741617154564,49.95386463,122.51,122.45,78.09036463]
[1741617154773,49.92386463,122.48,122.45,5.7]
[1741617155072,49.92386463,122.46,122.43,5.7]
[1741617155240,49.92386463,122.48,122.42,58.09236463]
[1741617155440,0.14216157,122.49,122.43,49.92386463]
[1741617155661,49.92386463,122.47,122.42,5.7]
[1741617155861,49.92386463,122.47,122.42,63.79236463]
[1741617156170,49.95386463,122.51,122.45,49.92386463]
[1741617156366,49.92386463,122.48,122.45,5.7]
[1741617156535,49.92386463,122.49,122.44,49.92386463]
[1741617156735,50.0960262,122.51,122.45,49.92386463]
[1741617156969,49.95386463,122.51,122.45,55.62386463]
[1741617157159,49.92386463,122.48,122.45,5.7]
[1741617157367,49.92386463,122.47,122.43,5.7]
[1741617157544,49.92386463,122.49,122.43,63.79166463]
[1741617157954,50.0660262,122.47,122.43,5.7]
[1741617158265,50.0660262,122.49,122.43,58.09136463]
[1741617158438,49.92386463,122.46,122.43,5.7]
[1741617158772,14.38,122.48,122.41,13.869]
[1741617158938,14.38,122.48,122.41,34.2921]
[1741617159138,49.92386463,122.47,122.42,49.92386463]
[1741617159339,49.92386463,122.45,122.41,5.7]
[1741617159640,14.38,122.48,122.42,49.92386463]
[1741617159861,49.92386463,122.45,122.42,5.7]
[1741617160141,22.5447,122.48,122.41,49.92386463]
[1741617160142,14.38,122.48,122.41,49.92386463]
[1741617160368,50.0660262,122.47,122.42,49.92386463]
[1741617160666,64.30386463,122.48,122.43,49.92386463]
[1741617160841,49.92386463,122.47,122.43,5.7]
[1741617161441,49.92386463,122.46,122.43,5.7]
[1741617161757,58.09006463,122.46,122.41,5.763]
[1741617161967,49.92386463,122.44,122.41,0.063]
[1741617162865,50.0660262,122.42,122.41,0.063]
[1741617163063,49.92386463,122.42,122.41,0.063]
[1741617163473,69.92386463,122.42,122.41,0.063]
[1741617163648,50.0660262,122.42,122.41,0.063]
[1741617164263,68.71567506,122.42,122.41,0.063]
[1741617164469,18.79181043,122.42,122.41,0.063]
[1741617164664,88.71567506,122.42,122.41,0.063]
[1741617165454,20.14216157,122.42,122.41,0.063]
[1741617165747,22.5462,122.46,122.41,0.063]
[1741617165949,49.92386463,122.45,122.41,5.763]
[1741617166153,49.92386463,122.44,122.41,5.763]
[1741617166364,50.0660262,122.42,122.41,5.763]
[1741617166562,50.0660262,122.42,122.41,0.063]
[1741617169060,0.14216157,122.47,122.41,0.063]
[1741617169276,49.92386463,122.43,122.41,5.763]
[1741617169474,18.79181043,122.47,122.41,5.763]
[1741617169657,49.92386463,122.45,122.41,8.2322]
[1741617169853,49.92386463,122.43,122.41,0.063]
[1741617170058,49.92386463,122.42,122.41,5.763]
[1741617170258,50.0660262,122.42,122.41,0.063]
[1741617170467,68.71567506,122.42,122.41,0.063]
[1741617170974,133.01953969,122.42,122.41,0.063]
[1741617171265,0.14216157,122.4,122.33,10.7]
[1741617171466,49.92386463,122.34,122.33,5.0]
[1741617171979,49.92386463,122.36,122.33,10.7]
[1741617172273,49.92386463,122.39,122.34,18.64964886]
[1741617172573,14.38,122.42,122.34,24.34964886]
[1741617172775,49.92386463,122.39,122.34,24.34964886]
[1741617172974,271.32396463,122.46,122.37,20.0]
[1741617172975,250.90906463,122.46,122.37,20.0]
[1741617173176,49.92386463,122.43,122.4,20.0]
[1741617173353,49.92386463,122.43,122.4,5.7]
[1741617173556,14.38,122.46,122.4,5.7]
[1741617173557,49.92386463,122.41,122.4,5.7]
[1741617173875,64.30386463,122.46,122.37,68.57351349]
[1741617174077,49.92386463,122.42,122.38,18.64964886]
[1741617174379,49.92386463,122.42,122.38,5.7]
[1741617174964,49.92386463,122.44,122.38,55.62386463]
[1741617175167,49.92386463,122.43,122.38,24.34964886]
[1741617175874,49.92386463,122.41,122.38,5.7]
[1741617176074,49.92386463,122.43,122.38,13.8711]
[1741617176277,64.30386463,122.46,122.38,65.02004739]
[1741617176473,49.92386463,122.44,122.41,20.0]
[1741617176667,49.92386463,122.45,122.41,25.7]
[1741617176871,8.1654,122.47,122.42,18.64964886]
[1741617176872,49.92386463,122.47,122.42,18.64964886]
[1741617177681,0.03,122.48,122.45,20.0]
[1741617177855,0.03,122.48,122.47,20.0]
[1741617178051,0.03,122.48,122.47,25.57390429]
[1741617178281,0.03,122.48,122.47,5.7]
[1741617178486,58.11836463,122.48,122.44,5.7]
[1741617178656,0.03,122.48,122.47,20.0]
[1741617178859,0.03,122.48,122.44,5.7]
[1741617179154,0.03,122.48,122.45,18.64964886]
[1741617179372,0.03,122.48,122.47,20.0]
[1741617179577,0.03,122.48,122.47,88.85783663]
[1741617179883,0.03,122.48,122.47,52.51484886]
[1741617180063,0.03,122.48,122.47,25.7]
[1741617180682,49.95386463,122.48,122.47,5.7]
[1741617181003,49.95386463,122.48,122.43,5.7]
[1741617181163,49.92386463,122.44,122.42,5.7]
[1741617181364,14.39,122.48,122.39,65.01924766]
[1741617181365,49.92386463,122.45,122.39,65.01924766]
[1741617181668,49.92386463,122.47,122.43,28.5877]
[1741617181869,49.95386463,122.48,122.43,63.79176463]
[1741617182078,49.92386463,122.45,122.43,5.7]
[1741617182475,49.92386463,122.44,122.4,5.7]
[1741617182662,14.36,122.47,122.4,13.8697]
[1741617182861,14.36,122.47,122.38,0.063]
[1741617182862,49.92386463,122.41,122.38,0.063]
[1741617183061,49.92386463,122.39,122.38,0.063]
[1741617183687,76.88627506,122.39,122.38,0.063]
[1741617183897,0.14216157,122.37,122.33,5.0]
[1741617184072,49.92386463,122.34,122.33,5.0]
[1741617184888,118.63953969,122.34,122.33,5.0]
[1741617185263,20.14216157,122.32,122.31,0.063]
[1741617185468,64.28386463,122.32,122.31,0.063]
[1741617185777,18.64964886,122.38,122.31,0.063]
[1741617185985,49.92386463,122.34,122.31,5.763]
[1741617186172,64.28386463,122.4,122.31,55.68686463]
[1741617186381,0.14216157,122.44,122.35,20.0]
[1741617186579,49.92386463,122.4,122.35,25.7]
[1741617186774,14.36,122.45,122.38,49.92386463]
[1741617186987,0.03,122.48,122.43,20.0]
[1741617187162,49.92386463,122.47,122.43,20.0]
[1741617187367,49.92386463,122.47,122.43,25.7]
[1741617187585,0.03,122.48,122.43,75.62386463]
[1741617187867,49.95386463,122.48,122.44,8.1672]
[1741617188073,49.92386463,122.45,122.44,5.7]
[1741617188274,49.92386463,122.45,122.4,5.7]
[1741617188489,49.92386463,122.42,122.4,5.7]
[1741617188787,0.03,122.48,122.41,18.64964886]
[1741617188991,0.03,122.48,122.44,20.0]
[1741617189789,0.03,122.48,122.44,75.62386463]
[1741617189967,49.95386463,122.48,122.45,8.1665]
[1741617190168,49.92386463,122.46,122.44,5.7]
[1741617190373,49.92386463,122.45,122.4,5.7]
[1741617190582,49.92386463,122.42,122.4,5.7]
[1741617190869,49.92386463,122.45,122.4,13.8696]
[1741617191088,49.92386463,122.44,122.4,5.7]
[1741617191287,49.92386463,122.43,122.4,5.7]
[1741617191475,49.92386463,122.42,122.4,5.7]
[1741617191680,49.92386463,122.43,122.4,5.7]
[1741617191998,49.92386463,122.46,122.41,18.64964886]
[1741617192296,49.92386463,122.47,122.45,20.0]
[1741617192587,0.03,122.48,122.47,20.0]
[1741617192788,0.03,122.48,122.47,25.7]
[1741617193195,0.03,122.48,122.47,44.34964886]
[1741617193492,0.03,122.48,122.47,94.55783663]
[1741617193881,0.03,122.48,122.47,25.7]
[1741617194075,49.95386463,122.48,122.47,5.7]
[1741617194592,0.03,122.48,122.47,5.7]
[1741617194794,0.03,122.48,122.47,25.7]
[1741617195597,49.95386463,122.48,122.47,25.7]
[1741617195798,49.95386463,122.48,122.44,5.7]
[1741617195999,8.1946,122.48,122.44,5.7]
[1741617196297,49.92386463,122.45,122.41,5.763]
[1741617196484,49.92386463,122.42,122.41,5.763]
[1741617196682,49.92386463,122.42,122.41,0.063]
[1741617197494,99.98989083,122.42,122.41,0.063]
[1741617197677,49.92386463,122.42,122.41,0.063]
[1741617197880,49.92386463,122.44,122.41,20.063]
[1741617198081,0.03,122.48,122.41,25.763]
[1741617198275,49.92386463,122.44,122.41,25.763]
[1741617198493,0.14216157,122.47,122.41,5.763]
[1741617198695,49.92386463,122.42,122.41,0.063]
[1741617198899,50.0660262,122.42,122.41,0.063]
[1741617199081,49.92386463,122.42,122.41,0.063]
[1741617199597,118.63953969,122.42,122.41,0.063]
[1741617199806,20.14216157,122.38,122.31,5.763]
[1741617199976,49.92386463,122.32,122.31,13.9388]
[1741617200173,49.92386463,122.35,122.31,13.9388]
[1741617200377,49.92386463,122.32,122.31,5.763]
[1741617200576,49.92386463,122.32,122.31,0.063]
[1741617201309,18.79181043,122.36,122.31,0.063]
[1741617201475,49.92386463,122.32,122.31,0.063]
[1741617201989,0.14216157,122.36,122.31,0.063]
[1741617202194,49.92386463,122.32,122.31,0.063]
[1741617203716,0.14216157,122.29,122.28,0.063]
[1741617203879,18.79181043,122.33,122.28,0.063]
[1741617204082,49.92386463,122.29,122.28,0.063]
[1741617204414,68.71567506,122.29,122.28,0.063]
[1741617204593,49.92386463,122.29,122.28,0.063]
[1741617204913,118.63953969,122.29,122.28,0.063]
[1741617205309,20.0,122.26,122.25,0.063]
[1741617205609,49.92386463,122.26,122.22,8.1818]
[1741617205811,18.79181043,122.27,122.22,0.25624734]
[1741617206108,49.92386463,122.23,122.22,0.25624734]
[1741617207083,18.79181043,122.27,122.22,0.25624734]
[1741617207397,49.92386463,122.23,122.22,0.25624734]
[1741617208108,58.10186463,122.28,122.22,0.25624734]
[1741617208109,0.14216157,122.26,122.22,0.25624734]
[1741617208401,49.92386463,122.23,122.22,0.25624734]
[1741617208610,0.14216157,122.26,122.22,0.25624734]
[1741617208792,49.92386463,122.23,122.22,0.25624734]
[1741617208986,49.92386463,122.24,122.22,8.43814734]
[1741617209205,49.92386463,122.26,122.22,14.13814734]
[1741617209607,49.92386463,122.26,122.22,34.59304734]
[1741617209912,49.92386463,122.25,122.22,8.43794734]
[1741617210215,50.0660262,122.23,122.22,0.25624734]
[1741617210514,50.0660262,122.23,122.19,0.24749809]
[1741617210515,20.0,122.2,122.19,0.24749809]
[1741617210702,88.71567506,122.2,122.19,0.80099236]
[1741617212207,18.79181043,122.19,122.17,0.03]
[1741617212409,118.63953969,122.18,122.17,1.13698854]
[1741617212984,20.79181043,122.16,122.15,0.03]
[1741617213188,118.63953969,122.11,122.1,0.03]
[1741617213599,20.0,122.08,122.01,5.7]
[1741617213915,34.36,122.08,122.0,13.8965]
[1741617214206,34.36,122.08,122.03,49.92386463]
[1741617214207,49.92386463,122.08,122.03,49.92386463]
[1741617214411,0.14216157,122.08,122.0,5.7]
[1741617214588,0.14216157,122.08,122.01,5.7]
[1741617214789,0.14216157,122.08,121.98,14.19774252]
[1741617214981,0.14216157,122.08,121.98,14.19784252]
[1741617215178,0.14216157,122.08,122.01,20.0]
[1741617215417,0.14216157,122.08,121.98,14.19784252]
[1741617215593,0.14216157,122.08,122.01,49.92386463]
[1741617215798,49.92386463,122.06,122.0,49.92386463]
[1741617216006,12.3729,122.11,122.0,5.7]
[1741617216207,209.18,122.13,122.02,18.933972]
[1741617216413,18.79181043,122.12,122.02,18.933972]
[1741617216604,18.79181043,122.12,122.01,8.196]
[1741617216917,0.14216157,122.1,121.98,5.99994252]
[1741617217121,18.79181043,122.06,121.98,5.99994252]
[1741617217297,49.92386463,121.99,121.98,0.29994252]
[1741617217622,118.63953969,121.99,121.98,0.29994252]
[1741617217916,6.2901,122.01,121.98,0.29994252]
[1741617218129,76.91297506,121.99,121.98,0.29994252]
[1741617218621,126.83683969,121.99,121.98,0.29994252]
[1741617219128,20.14216157,121.96,121.95,0.26994826]
[1741617219420,84.4260262,121.96,121.95,1.07979304]
[1741617219624,103.07567506,121.96,121.95,1.07979304]
[1741617220190,111.27507506,121.96,121.95,1.07979304]
[1741617220605,14.36,121.96,121.95,1.07979304]
[1741617220811,64.28386463,121.96,121.95,1.07979304]
[1741617220991,91.27507506,121.96,121.95,1.07979304]
[1741617221196,20.0,121.94,121.93,0.16196896]
[1741617221399,38.79181043,121.93,121.92,0.19738084]
[1741617221598,49.92386463,121.93,121.92,0.19738084]
[1741617221816,68.71567506,121.93,121.92,0.19738084]
[1741617222193,49.92386463,121.93,121.92,0.19738084]
[1741617222696,18.79181043,121.92,121.91,1.89016086]
[1741617223025,313.87953969,121.92,121.88,0.75606435]
[1741617223228,263.95567506,121.92,121.91,0.75606435]
[1741617223725,263.95567506,121.92,121.9,0.75606435]
[1741617223932,38.79181043,121.89,121.88,0.61241212]
[1741617224132,103.09567506,121.89,121.88,2.44964848]
[1741617224493,83.09567506,121.89,121.88,2.44964848]
[1741617224835,91.29977506,121.89,121.88,2.44964848]
[1741617225600,91.29977506,121.89,121.87,0.61241212]
[1741617225601,141.22363969,121.89,121.87,0.61241212]
[1741617225800,141.22363969,121.89,121.84,0.61241212]
[1741617225801,18.79181043,121.85,121.84,0.36744727]
[1741617225999,68.71567506,121.85,121.84,0.26744727]
[1741617226329,97.29731349,121.85,121.84,2.54e-06]
[1741617226500,20.14216157,121.82,121.81,0.21663229]
[1741617226701,53.17181043,121.82,121.81,0.86652916]
[1741617226897,348.35953969,121.82,121.73,5.7]
[1741617227205,49.92386463,121.74,121.73,0.09098556]
[1741617227623,49.92386463,121.75,121.73,0.09098556]
[1741617228126,49.92386463,121.74,121.73,0.09098556]
[1741617228428,215.34,121.82,121.73,50.01485019]
[1741617228628,49.92386463,121.81,121.75,49.92386463]
[1741617228797,49.92386463,121.8,121.73,5.79098556]
[1741617229001,0.14216157,121.78,121.73,0.09098556]
[1741617229215,18.79181043,121.78,121.73,0.09098556]
[1741617229548,49.92386463,121.8,121.74,49.92386463]
[1741617230024,49.92386463,121.79,121.73,5.79098556]
[1741617230335,49.92386463,121.77,121.73,8.30588556]
[1741617230503,49.92386463,121.8,121.74,49.92386463]